[Event "Titled Tuesday Blitz April 18 Late 2023"]
[White "Feng, Eric"]
[Black "Rios Escobar, Adan"]
[WhiteFideId "30952590"]
[BlackFideId "3403645"]
[WhiteElo "1785"]
[BlackElo "2490"]
[Result "1-0"]
[Round "08"]
[TimeControl "180+2"]
[Date "2023.04.18"]
[WhiteClock "0:00:49"]
[BlackClock "0:00:01"]

1. d4 {[%clk 0:02:55]}  Nf6 {[%clk 0:02:58]} 2. c4 {[%clk 0:02:55]}  g6 {[%clk 0:02:58]} 3. Nf3 {[%clk 0:02:56]}  Bg7 {[%clk 0:02:59]} 4. g3 {[%clk 0:02:57]}  c5 {[%clk 0:02:58]} 5. d5 {[%clk 0:02:57]}  b5 {[%clk 0:02:58]} 6. cxb5 {[%clk 0:02:57]}  a6 {[%clk 0:02:59]} 7. bxa6 {[%clk 0:02:55]}  Qa5+ {[%clk 0:02:54]} 8. Bd2 {[%clk 0:02:52]}  Qxa6 {[%clk 0:02:49]} 9. Nc3 {[%clk 0:02:51]}  d6 {[%clk 0:02:46]} 10. Bg2 {[%clk 0:02:51]}  O-O {[%clk 0:02:44]} 11. O-O {[%clk 0:02:51]}  Nbd7 {[%clk 0:02:34]} 12. Re1 {[%clk 0:02:51]}  Nb6 {[%clk 0:02:34]} 13. e4 {[%clk 0:02:51]}  Nc4 {[%clk 0:02:33]} 14. Bf1 {[%clk 0:02:51]}  Bg4 {[%clk 0:02:11]} 15. Bc1 {[%clk 0:02:36]}  Nd7 {[%clk 0:01:58]} 16. h3 {[%clk 0:02:35]}  Bxf3 {[%clk 0:01:49]} 17. Qxf3 {[%clk 0:02:36]}  Nde5 {[%clk 0:01:49]} 18. Qe2 {[%clk 0:02:36]}  Nb6 {[%clk 0:01:28]} 19. Qxa6 {[%clk 0:02:34]}  Nf3+ {[%clk 0:01:28]} 20. Kh1 {[%clk 0:02:27]}  Rxa6 {[%clk 0:01:28]} 21. Re3 {[%clk 0:02:25]}  Ra7 {[%clk 0:00:31]} 22. Rxf3 {[%clk 0:02:24]}  Rfa8 {[%clk 0:00:29]} 23. a3 {[%clk 0:02:19]}  h5 {[%clk 0:00:25]} 24. Bb5 {[%clk 0:02:06]}  Ra5 {[%clk 0:00:22]} 25. Bc6 {[%clk 0:02:03]}  Rb8 {[%clk 0:00:22]} 26. Bd2 {[%clk 0:02:03]}  Nc4 {[%clk 0:00:22]} 27. Be1 {[%clk 0:01:55]}  Rxb2 {[%clk 0:00:20]} 28. Nd1 {[%clk 0:01:40]}  Re2 {[%clk 0:00:18]} 29. Bxa5 {[%clk 0:01:19]}  Bxa1 {[%clk 0:00:16]} 30. Kg2 {[%clk 0:01:03]}  Nxa3 {[%clk 0:00:13]} 31. Rxa3 {[%clk 0:01:03]}  Bd4 {[%clk 0:00:11]} 32. Bb5 {[%clk 0:00:59]}  Rc2 {[%clk 0:00:10]} 33. Kf3 {[%clk 0:00:51]}  Rc1 {[%clk 0:00:04]} 34. Ke2 {[%clk 0:00:50]}  Rc2+ {[%clk 0:00:02]} 35. Bd2 {[%clk 0:00:49]}  Kg7 {[%clk 0:00:01]} 36. Bd3 {[%clk 0:00:49]} 1-0


[Site "https://www.chess.com"]

[Event "Titled Tuesday Blitz April 18 Late 2023"]
[White "Aldokhin, Ivan"]
[Black "Jovic, Stanoje"]
[WhiteFideId "24115720"]
[BlackFideId "905020"]
[WhiteElo "2322"]
[BlackElo "2236"]
[Result "1-0"]
[Round "08"]
[TimeControl "180+2"]
[Date "2023.04.18"]
[WhiteClock "0:00:02"]
[BlackClock "0:00:01"]

1. e4 {[%clk 0:03:00]}  c6 {[%clk 0:02:59]} 2. Nc3 {[%clk 0:02:59]}  d5 {[%clk 0:02:59]} 3. d4 {[%clk 0:03:00]}  dxe4 {[%clk 0:02:58]} 4. Nxe4 {[%clk 0:03:01]}  Nf6 {[%clk 0:02:56]} 5. Nxf6+ {[%clk 0:03:01]}  exf6 {[%clk 0:02:57]} 6. c3 {[%clk 0:03:02]}  Bd6 {[%clk 0:02:56]} 7. Bd3 {[%clk 0:03:03]}  O-O {[%clk 0:02:56]} 8. Ne2 {[%clk 0:03:04]}  Qc7 {[%clk 0:02:55]} 9. Qc2 {[%clk 0:03:04]}  h5 {[%clk 0:02:54]} 10. Bd2 {[%clk 0:02:53]}  Re8 {[%clk 0:02:50]} 11. O-O-O {[%clk 0:02:50]}  b5 {[%clk 0:02:49]} 12. Ng3 {[%clk 0:02:46]}  h4 {[%clk 0:02:43]} 13. Nf5 {[%clk 0:02:41]}  Bxf5 {[%clk 0:02:40]} 14. Bxf5 {[%clk 0:02:41]}  Bf4 {[%clk 0:02:31]} 15. g3 {[%clk 0:02:36]}  Bxd2+ {[%clk 0:02:28]} 16. Qxd2 {[%clk 0:02:37]}  Nd7 {[%clk 0:02:24]} 17. gxh4 {[%clk 0:02:33]}  Nb6 {[%clk 0:02:21]} 18. Rhg1 {[%clk 0:02:33]}  Kf8 {[%clk 0:02:19]} 19. Rxg7 {[%clk 0:01:58]}  Kxg7 {[%clk 0:02:13]} 20. Rg1+ {[%clk 0:01:57]}  Kf8 {[%clk 0:02:13]} 21. Qh6+ {[%clk 0:01:57]}  Ke7 {[%clk 0:02:13]} 22. Re1+ {[%clk 0:01:58]}  Kd8 {[%clk 0:01:33]} 23. Qxf6+ {[%clk 0:01:56]}  Qe7 {[%clk 0:01:29]} 24. Rxe7 {[%clk 0:01:55]}  Rxe7 {[%clk 0:01:28]} 25. h5 {[%clk 0:01:49]}  Nd7 {[%clk 0:01:12]} 26. Bxd7 {[%clk 0:01:35]}  Kxd7 {[%clk 0:01:09]} 27. h6 {[%clk 0:01:36]}  Rf8 {[%clk 0:01:01]} 28. h7 {[%clk 0:01:33]}  Ree8 {[%clk 0:00:58]} 29. Kc2 {[%clk 0:01:23]}  Kc7 {[%clk 0:00:57]} 30. Kb3 {[%clk 0:01:21]}  a5 {[%clk 0:00:54]} 31. c4 {[%clk 0:01:17]}  bxc4+ {[%clk 0:00:49]} 32. Kxc4 {[%clk 0:01:17]}  Kb7 {[%clk 0:00:48]} 33. Kc5 {[%clk 0:01:15]}  Rc8 {[%clk 0:00:45]} 34. a4 {[%clk 0:00:50]}  Rh8 {[%clk 0:00:41]} 35. Qg7 {[%clk 0:00:44]}  Rhf8 {[%clk 0:00:19]} 36. h4 {[%clk 0:00:43]}  Ka6 {[%clk 0:00:18]} 37. h5 {[%clk 0:00:41]}  f5 {[%clk 0:00:16]} 38. f4 {[%clk 0:00:37]}  Rb8 {[%clk 0:00:11]} 39. Qc7 {[%clk 0:00:30]}  Rfc8 {[%clk 0:00:09]} 40. Qd7 {[%clk 0:00:28]}  Rh8 {[%clk 0:00:05]} 41. Qxf5 {[%clk 0:00:18]}  Rb7 {[%clk 0:00:02]} 42. Qg6 {[%clk 0:00:15]}  Rhxh7 {[%clk 0:00:02]} 43. f5 {[%clk 0:00:14]}  Rhd7 {[%clk 0:00:01]} 44. Qf6 {[%clk 0:00:02]}  Rd5+ {[%clk 0:00:01]} 45. Kc4 {[%clk 0:00:02]} 1-0


[Site "https://www.chess.com"]

[Event "Titled Tuesday Blitz April 18 Late 2023"]
[White "ElenGajger"]
[Black "Adla, Diego"]
[BlackFideId "100072"]
[WhiteElo "2456"]
[BlackElo "2377"]
[Result "0-1"]
[Round "08"]
[TimeControl "180+2"]
[Date "2023.04.18"]
[WhiteClock "0:00:01"]
[BlackClock "0:00:44"]

1. e4 {[%clk 0:03:00]}  e5 {[%clk 0:03:00]} 2. d4 {[%clk 0:02:55]}  exd4 {[%clk 0:02:58]} 3. Nf3 {[%clk 0:02:54]}  Nc6 {[%clk 0:02:54]} 4. Bc4 {[%clk 0:02:54]}  Nf6 {[%clk 0:02:52]} 5. e5 {[%clk 0:02:53]}  d5 {[%clk 0:02:53]} 6. Bb5 {[%clk 0:02:53]}  Ne4 {[%clk 0:02:51]} 7. Nxd4 {[%clk 0:02:54]}  Bc5 {[%clk 0:02:52]} 8. Be3 {[%clk 0:02:53]}  O-O {[%clk 0:02:50]} 9. Nxc6 {[%clk 0:02:52]}  bxc6 {[%clk 0:02:48]} 10. Bxc5 {[%clk 0:02:52]}  Nxc5 {[%clk 0:02:47]} 11. Bxc6 {[%clk 0:02:52]}  Rb8 {[%clk 0:02:48]} 12. O-O {[%clk 0:02:50]}  Rxb2 {[%clk 0:02:18]} 13. Nc3 {[%clk 0:02:46]}  d4 {[%clk 0:02:11]} 14. Nd5 {[%clk 0:02:46]}  Ne6 {[%clk 0:02:07]} 15. Qc1 {[%clk 0:02:39]}  Rb8 {[%clk 0:02:07]} 16. Qa3 {[%clk 0:02:37]}  Bb7 {[%clk 0:02:00]} 17. Rab1 {[%clk 0:02:16]}  Ba8 {[%clk 0:01:49]} 18. Bxa8 {[%clk 0:01:55]}  Rxa8 {[%clk 0:01:47]} 19. Ne7+ {[%clk 0:01:52]}  Kh8 {[%clk 0:01:45]} 20. f4 {[%clk 0:01:32]}  Re8 {[%clk 0:01:39]} 21. Nf5 {[%clk 0:01:29]}  Qd5 {[%clk 0:01:39]} 22. Ng3 {[%clk 0:01:09]}  a5 {[%clk 0:01:33]} 23. Qd3 {[%clk 0:01:02]}  Nc5 {[%clk 0:01:27]} 24. Qf5 {[%clk 0:00:57]}  Qxa2 {[%clk 0:01:16]} 25. Nh5 {[%clk 0:00:44]}  Qd5 {[%clk 0:01:11]} 26. Rb5 {[%clk 0:00:36]}  Rg8 {[%clk 0:01:08]} 27. Qg4 {[%clk 0:00:17]}  c6 {[%clk 0:01:07]} 28. Rbb1 {[%clk 0:00:15]}  Ne4 {[%clk 0:01:04]} 29. Rbe1 {[%clk 0:00:15]}  d3 {[%clk 0:01:01]} 30. h3 {[%clk 0:00:06]}  d2 {[%clk 0:00:59]} 31. Rd1 {[%clk 0:00:04]}  Qd4+ {[%clk 0:00:59]} 32. Kh2 {[%clk 0:00:04]}  Nf2 {[%clk 0:00:59]} 33. Rxf2 {[%clk 0:00:01]}  Qxf2 {[%clk 0:00:59]} 34. f5 {[%clk 0:00:01]}  Rab8 {[%clk 0:00:49]} 35. f6 {[%clk 0:00:01]}  g6 {[%clk 0:00:48]} 36. Ng3 {[%clk 0:00:01]}  Rb4 {[%clk 0:00:44]} 0-1


[Site "https://www.chess.com"]

[Event "Titled Tuesday Blitz April 18 Late 2023"]
[White "Lizak, Peter"]
[Black "Le Goff, Ronan"]
[WhiteFideId "731595"]
[BlackFideId "612073"]
[WhiteElo "2420"]
[BlackElo "2275"]
[Result "1-0"]
[Round "08"]
[TimeControl "180+2"]
[Date "2023.04.18"]
[WhiteClock "0:00:46"]
[BlackClock "0:01:19"]

1. d4 {[%clk 0:03:00]}  Nf6 {[%clk 0:02:58]} 2. Nf3 {[%clk 0:03:00]}  e6 {[%clk 0:02:58]} 3. Bf4 {[%clk 0:03:00]}  d5 {[%clk 0:02:56]} 4. e3 {[%clk 0:03:00]}  c5 {[%clk 0:02:56]} 5. Nbd2 {[%clk 0:02:54]}  Nc6 {[%clk 0:02:56]} 6. c3 {[%clk 0:02:54]}  cxd4 {[%clk 0:02:54]} 7. exd4 {[%clk 0:02:54]}  Nh5 {[%clk 0:02:54]} 8. Be3 {[%clk 0:02:54]}  g6 {[%clk 0:02:54]} 9. g4 {[%clk 0:02:46]}  Nf6 {[%clk 0:02:52]} 10. h3 {[%clk 0:02:42]}  Bg7 {[%clk 0:02:49]} 11. Bd3 {[%clk 0:02:43]}  h5 {[%clk 0:02:45]} 12. g5 {[%clk 0:02:41]}  Ng8 {[%clk 0:02:43]} 13. Bf4 {[%clk 0:02:37]}  Nge7 {[%clk 0:02:43]} 14. Qe2 {[%clk 0:02:36]}  Qb6 {[%clk 0:02:42]} 15. O-O-O {[%clk 0:02:35]}  Bd7 {[%clk 0:02:41]} 16. Ne5 {[%clk 0:02:32]}  Nxe5 {[%clk 0:02:34]} 17. Bxe5 {[%clk 0:02:32]}  Bxe5 {[%clk 0:02:34]} 18. Qxe5 {[%clk 0:02:32]}  O-O {[%clk 0:02:31]} 19. Nf3 {[%clk 0:02:26]}  Rac8 {[%clk 0:02:27]} 20. Nh4 {[%clk 0:02:23]}  Nc6 {[%clk 0:02:20]} 21. Qf6 {[%clk 0:02:19]}  Qd8 {[%clk 0:02:17]} 22. f4 {[%clk 0:02:13]}  Qxf6 {[%clk 0:02:15]} 23. gxf6 {[%clk 0:02:13]}  Nxd4 {[%clk 0:02:13]} 24. Kd2 {[%clk 0:02:03]}  Nc6 {[%clk 0:01:59]} 25. Rhg1 {[%clk 0:01:59]}  Be8 {[%clk 0:01:57]} 26. Rg5 {[%clk 0:01:51]}  d4 {[%clk 0:01:52]} 27. Rdg1 {[%clk 0:01:48]}  dxc3+ {[%clk 0:01:52]} 28. bxc3 {[%clk 0:01:48]}  Rd8 {[%clk 0:01:52]} 29. Ke3 {[%clk 0:01:42]}  Rd5 {[%clk 0:01:49]} 30. Rxd5 {[%clk 0:01:39]}  exd5 {[%clk 0:01:50]} 31. Rg5 {[%clk 0:00:58]}  Bd7 {[%clk 0:01:46]} 32. f5 {[%clk 0:00:55]}  Re8+ {[%clk 0:01:33]} 33. Kf4 {[%clk 0:00:55]}  Ne5 {[%clk 0:01:33]} 34. Bc2 {[%clk 0:00:53]}  Kf8 {[%clk 0:01:23]} 35. fxg6 {[%clk 0:00:49]}  fxg6 {[%clk 0:01:19]} 36. Rxe5 {[%clk 0:00:46]} 1-0


[Site "https://www.chess.com"]

[Event "Titled Tuesday Blitz April 18 Late 2023"]
[White "Gonzalez, Francisco Silva"]
[Black "Krishnan, Varun"]
[WhiteFideId "1512285"]
[BlackFideId "5054508"]
[WhiteElo "2074"]
[BlackElo "2602"]
[Result "1-0"]
[Round "08"]
[TimeControl "180+2"]
[Date "2023.04.18"]
[WhiteClock "0:00:32"]
[BlackClock "0:00:16"]

1. d4 {[%clk 0:03:00]}  Nf6 {[%clk 0:02:59]} 2. c4 {[%clk 0:03:00]}  e6 {[%clk 0:02:58]} 3. Nc3 {[%clk 0:03:00]}  Bb4 {[%clk 0:02:58]} 4. a3 {[%clk 0:03:00]}  Bxc3+ {[%clk 0:02:56]} 5. bxc3 {[%clk 0:03:01]}  O-O {[%clk 0:02:55]} 6. e3 {[%clk 0:03:00]}  d5 {[%clk 0:02:55]} 7. Bd3 {[%clk 0:03:01]}  c5 {[%clk 0:02:52]} 8. cxd5 {[%clk 0:03:00]}  exd5 {[%clk 0:02:53]} 9. Ne2 {[%clk 0:02:59]}  Nc6 {[%clk 0:02:52]} 10. f3 {[%clk 0:02:59]}  b6 {[%clk 0:02:38]} 11. O-O {[%clk 0:02:58]}  Bb7 {[%clk 0:02:38]} 12. Bd2 {[%clk 0:02:56]}  Na5 {[%clk 0:02:36]} 13. Ng3 {[%clk 0:02:54]}  Nc4 {[%clk 0:02:31]} 14. Bxc4 {[%clk 0:02:53]}  dxc4 {[%clk 0:02:32]} 15. Qe2 {[%clk 0:02:46]}  cxd4 {[%clk 0:02:30]} 16. cxd4 {[%clk 0:02:45]}  Rc8 {[%clk 0:02:29]} 17. Rfc1 {[%clk 0:02:41]}  Ba6 {[%clk 0:02:15]} 18. Bb4 {[%clk 0:02:36]}  Re8 {[%clk 0:02:14]} 19. Qd2 {[%clk 0:02:32]}  Nd5 {[%clk 0:02:10]} 20. e4 {[%clk 0:02:31]}  Nxb4 {[%clk 0:02:05]} 21. axb4 {[%clk 0:02:29]}  Bb5 {[%clk 0:02:04]} 22. Rxa7 {[%clk 0:02:28]}  Ra8 {[%clk 0:02:03]} 23. Rxa8 {[%clk 0:02:25]}  Qxa8 {[%clk 0:02:04]} 24. Nf5 {[%clk 0:02:26]}  Qd8 {[%clk 0:01:57]} 25. d5 {[%clk 0:02:20]}  Qf6 {[%clk 0:01:52]} 26. h3 {[%clk 0:02:14]}  g6 {[%clk 0:01:52]} 27. Nh6+ {[%clk 0:02:13]}  Kg7 {[%clk 0:01:50]} 28. Ng4 {[%clk 0:02:14]}  Qd6 {[%clk 0:01:49]} 29. Qc3+ {[%clk 0:02:11]}  f6 {[%clk 0:01:47]} 30. Ra1 {[%clk 0:02:09]}  Re7 {[%clk 0:01:46]} 31. Ra8 {[%clk 0:02:06]}  Rf7 {[%clk 0:01:29]} 32. Qe3 {[%clk 0:01:59]}  g5 {[%clk 0:01:29]} 33. Qc3 {[%clk 0:01:49]}  Rf8 {[%clk 0:01:09]} 34. Ra7+ {[%clk 0:01:37]}  Rf7 {[%clk 0:01:09]} 35. Ra8 {[%clk 0:01:34]}  Rf8 {[%clk 0:01:09]} 36. Rxf8 {[%clk 0:01:14]}  Qxf8 {[%clk 0:01:07]} 37. e5 {[%clk 0:01:15]}  fxe5 {[%clk 0:00:59]} 38. Qxe5+ {[%clk 0:01:12]}  Kg6 {[%clk 0:01:00]} 39. Qe6+ {[%clk 0:01:09]}  Kg7 {[%clk 0:01:00]} 40. Qh6+ {[%clk 0:01:04]}  Kg8 {[%clk 0:00:50]} 41. Qxg5+ {[%clk 0:01:01]}  Qg7 {[%clk 0:00:45]} 42. Qd8+ {[%clk 0:01:00]}  Kf7 {[%clk 0:00:38]} 43. Qc7+ {[%clk 0:00:59]}  Kg8 {[%clk 0:00:37]} 44. Qd8+ {[%clk 0:00:56]}  Kf7 {[%clk 0:00:37]} 45. Qxb6 {[%clk 0:00:56]}  Bd7 {[%clk 0:00:19]} 46. Qc7 {[%clk 0:00:52]}  Qd4+ {[%clk 0:00:13]} 47. Kh2 {[%clk 0:00:45]}  Qxd5 {[%clk 0:00:13]} 48. Ne5+ {[%clk 0:00:42]}  Ke6 {[%clk 0:00:03]} 49. Nxd7 {[%clk 0:00:41]}  Qxd7 {[%clk 0:00:03]} 50. Qxc4+ {[%clk 0:00:41]}  Kf6 {[%clk 0:00:03]} 51. Qh4+ {[%clk 0:00:41]}  Kg7 {[%clk 0:00:03]} 52. Qg4+ {[%clk 0:00:41]}  Qxg4 {[%clk 0:00:03]} 53. hxg4 {[%clk 0:00:39]}  Kh6 {[%clk 0:00:01]} 54. f4 {[%clk 0:00:39]}  Kg6 {[%clk 0:00:02]} 55. f5+ {[%clk 0:00:38]}  Kg5 {[%clk 0:00:02]} 56. b5 {[%clk 0:00:38]}  h5 {[%clk 0:00:02]} 57. gxh5 {[%clk 0:00:38]}  Kxh5 {[%clk 0:00:02]} 58. g4+ {[%clk 0:00:37]}  Kh4 {[%clk 0:00:03]} 59. b6 {[%clk 0:00:37]}  Kxg4 {[%clk 0:00:03]} 60. f6 {[%clk 0:00:37]}  Kf5 {[%clk 0:00:04]} 61. f7 {[%clk 0:00:37]}  Ke6 {[%clk 0:00:05]} 62. b7 {[%clk 0:00:36]}  Kd7 {[%clk 0:00:06]} 63. Kg3 {[%clk 0:00:35]}  Kc7 {[%clk 0:00:06]} 64. Kf4 {[%clk 0:00:35]}  Kxb7 {[%clk 0:00:07]} 65. f8=R {[%clk 0:00:34]}  Kc6 {[%clk 0:00:08]} 66. Rd8 {[%clk 0:00:33]}  Kc7 {[%clk 0:00:09]} 67. Rd5 {[%clk 0:00:33]}  Kc6 {[%clk 0:00:10]} 68. Ke5 {[%clk 0:00:33]}  Kc7 {[%clk 0:00:10]} 69. Rd6 {[%clk 0:00:33]}  Kb7 {[%clk 0:00:10]} 70. Kd4 {[%clk 0:00:33]}  Kc7 {[%clk 0:00:11]} 71. Kc5 {[%clk 0:00:34]}  Kb7 {[%clk 0:00:12]} 72. Rc6 {[%clk 0:00:34]}  Kb8 {[%clk 0:00:12]} 73. Kb4 {[%clk 0:00:34]}  Ka7 {[%clk 0:00:13]} 74. Kc5 {[%clk 0:00:33]}  Kb7 {[%clk 0:00:14]} 75. Kb5 {[%clk 0:00:33]}  Ka7 {[%clk 0:00:15]} 76. Rc7+ {[%clk 0:00:33]}  Ka8 {[%clk 0:00:15]} 77. Kc5 {[%clk 0:00:32]}  Kb8 {[%clk 0:00:15]} 78. Kb6 {[%clk 0:00:32]}  Ka8 {[%clk 0:00:16]} 79. Rc8# {[%clk 0:00:32]} 1-0


[Site "https://www.chess.com"]

[Event "Titled Tuesday Blitz April 18 Late 2023"]
[White "Vlassov, Nikolai"]
[Black "Hoffmann, Asa"]
[WhiteFideId "4103360"]
[BlackFideId "2001470"]
[WhiteElo "2324"]
[BlackElo "2117"]
[Result "1-0"]
[Round "08"]
[TimeControl "180+2"]
[Date "2023.04.18"]
[WhiteClock "0:00:37"]
[BlackClock "0:00:48"]

1. e4 {[%clk 0:03:00]}  d6 {[%clk 0:02:57]} 2. f4 {[%clk 0:03:00]}  Nf6 {[%clk 0:02:56]} 3. Nc3 {[%clk 0:03:00]}  c6 {[%clk 0:02:56]} 4. d4 {[%clk 0:02:58]}  Qa5 {[%clk 0:02:53]} 5. Bd3 {[%clk 0:02:56]}  e5 {[%clk 0:02:52]} 6. Nf3 {[%clk 0:02:52]}  exd4 {[%clk 0:02:52]} 7. Nxd4 {[%clk 0:02:52]}  Qb6 {[%clk 0:02:52]} 8. Bc4 {[%clk 0:02:43]}  d5 {[%clk 0:02:51]} 9. exd5 {[%clk 0:02:39]}  Bc5 {[%clk 0:02:50]} 10. Qe2+ {[%clk 0:02:07]}  Kd8 {[%clk 0:02:50]} 11. Nf3 {[%clk 0:02:04]}  Bg4 {[%clk 0:02:49]} 12. Qd3 {[%clk 0:01:42]}  Re8+ {[%clk 0:02:36]} 13. Ne5 {[%clk 0:01:39]}  Nbd7 {[%clk 0:02:27]} 14. dxc6 {[%clk 0:01:38]}  Qxc6 {[%clk 0:02:19]} 15. Kf1 {[%clk 0:01:26]}  Qb6 {[%clk 0:01:45]} 16. Na4 {[%clk 0:01:19]}  Qa5 {[%clk 0:01:41]} 17. Nxc5 {[%clk 0:01:16]}  Qxc5 {[%clk 0:01:41]} 18. Be3 {[%clk 0:01:16]}  Qc7 {[%clk 0:01:32]} 19. Nxf7+ {[%clk 0:01:14]}  Ke7 {[%clk 0:01:32]} 20. Qa3+ {[%clk 0:01:05]}  Nc5 {[%clk 0:01:10]} 21. Qxc5+ {[%clk 0:01:03]}  Qxc5 {[%clk 0:01:09]} 22. Bxc5+ {[%clk 0:01:03]}  Kd7 {[%clk 0:01:09]} 23. Bb5+ {[%clk 0:01:03]}  Ke6 {[%clk 0:01:04]} 24. Ng5+ {[%clk 0:00:58]}  Kf5 {[%clk 0:01:02]} 25. Bxe8 {[%clk 0:00:54]}  Rxe8 {[%clk 0:01:02]} 26. Re1 {[%clk 0:00:51]}  Rc8 {[%clk 0:00:59]} 27. Ne6 {[%clk 0:00:42]}  Rc6 {[%clk 0:00:53]} 28. Nd4+ {[%clk 0:00:41]}  Kxf4 {[%clk 0:00:52]} 29. Nxc6 {[%clk 0:00:41]}  bxc6 {[%clk 0:00:52]} 30. h3 {[%clk 0:00:40]}  Bf5 {[%clk 0:00:51]} 31. Bd6+ {[%clk 0:00:37]}  Kg5 {[%clk 0:00:50]} 32. Be7 {[%clk 0:00:37]}  Kg6 {[%clk 0:00:49]} 33. Bxf6 {[%clk 0:00:37]}  Kxf6 {[%clk 0:00:48]} 34. Re2 {[%clk 0:00:37]} 1-0


[Site "https://www.chess.com"]

[Event "Titled Tuesday Blitz April 18 Late 2023"]
[White "Srinath, Rao S.V."]
[Black "EsmeraldasAnderson03"]
[WhiteFideId "5028876"]
[WhiteElo "2196"]
[BlackElo "2394"]
[Result "1-0"]
[Round "08"]
[TimeControl "180+2"]
[Date "2023.04.18"]
[WhiteClock "0:02:02"]
[BlackClock "0:01:29"]

1. c4 {[%clk 0:03:00]}  e5 {[%clk 0:02:59]} 2. Nc3 {[%clk 0:03:01]}  Nc6 {[%clk 0:03:00]} 3. Nf3 {[%clk 0:03:01]}  f5 {[%clk 0:03:00]} 4. d4 {[%clk 0:02:56]}  e4 {[%clk 0:03:00]} 5. d5 {[%clk 0:02:57]}  exf3 {[%clk 0:02:56]} 6. dxc6 {[%clk 0:02:56]}  fxg2 {[%clk 0:02:37]} 7. cxd7+ {[%clk 0:02:53]}  Qxd7 {[%clk 0:02:38]} 8. Qxd7+ {[%clk 0:02:51]}  Bxd7 {[%clk 0:02:37]} 9. Bxg2 {[%clk 0:02:52]}  c6 {[%clk 0:02:36]} 10. Bg5 {[%clk 0:02:42]}  h6 {[%clk 0:02:33]} 11. Be3 {[%clk 0:02:41]}  Be6 {[%clk 0:02:14]} 12. c5 {[%clk 0:02:26]}  Nf6 {[%clk 0:02:00]} 13. O-O-O {[%clk 0:02:24]}  Rd8 {[%clk 0:01:49]} 14. Rxd8+ {[%clk 0:02:22]}  Kxd8 {[%clk 0:01:50]} 15. Rd1+ {[%clk 0:02:22]}  Kc8 {[%clk 0:01:48]} 16. b4 {[%clk 0:02:21]}  a6 {[%clk 0:01:46]} 17. Na4 {[%clk 0:02:15]}  g5 {[%clk 0:01:40]} 18. Bd4 {[%clk 0:02:08]}  Bg7 {[%clk 0:01:40]} 19. Be5 {[%clk 0:02:08]}  Bd5 {[%clk 0:01:29]} 20. Nb6+ {[%clk 0:02:05]}  Kd8 {[%clk 0:01:30]} 21. Bxd5 {[%clk 0:02:01]}  cxd5 {[%clk 0:01:29]} 22. Nxd5 {[%clk 0:02:02]} 1-0


[Site "https://www.chess.com"]

[Event "Titled Tuesday Blitz April 18 Late 2023"]
[White "mistrzemi"]
[Black "cryptoguru02"]
[WhiteElo "2441"]
[BlackElo "2600"]
[Result "0-1"]
[Round "08"]
[TimeControl "180+2"]
[Date "2023.04.18"]
[WhiteClock "0:00:12"]
[BlackClock "0:00:09"]

1. d4 {[%clk 0:03:00]}  g6 {[%clk 0:02:59]} 2. e4 {[%clk 0:03:00]}  Bg7 {[%clk 0:02:59]} 3. Nc3 {[%clk 0:02:59]}  d6 {[%clk 0:02:59]} 4. Bg5 {[%clk 0:02:57]}  c6 {[%clk 0:02:59]} 5. Qd2 {[%clk 0:02:57]}  b5 {[%clk 0:02:59]} 6. a3 {[%clk 0:02:56]}  Nd7 {[%clk 0:02:58]} 7. h4 {[%clk 0:02:50]}  h6 {[%clk 0:02:55]} 8. Be3 {[%clk 0:02:49]}  h5 {[%clk 0:02:56]} 9. Nh3 {[%clk 0:02:46]}  Nb6 {[%clk 0:02:54]} 10. Ng5 {[%clk 0:02:45]}  Nf6 {[%clk 0:02:50]} 11. f3 {[%clk 0:02:44]}  Rb8 {[%clk 0:02:44]} 12. Be2 {[%clk 0:01:49]}  Nc4 {[%clk 0:02:43]} 13. Bxc4 {[%clk 0:01:49]}  bxc4 {[%clk 0:02:44]} 14. Rb1 {[%clk 0:01:47]}  O-O {[%clk 0:02:43]} 15. O-O {[%clk 0:01:47]}  Qc7 {[%clk 0:02:31]} 16. b4 {[%clk 0:01:37]}  cxb3 {[%clk 0:02:29]} 17. cxb3 {[%clk 0:01:38]}  Nh7 {[%clk 0:02:07]} 18. Nxh7 {[%clk 0:01:33]}  Kxh7 {[%clk 0:02:07]} 19. b4 {[%clk 0:01:33]}  a5 {[%clk 0:01:44]} 20. b5 {[%clk 0:01:30]}  Bd7 {[%clk 0:01:34]} 21. bxc6 {[%clk 0:01:27]}  Bxc6 {[%clk 0:01:35]} 22. Rfc1 {[%clk 0:01:20]}  Qd7 {[%clk 0:01:34]} 23. d5 {[%clk 0:01:18]}  Ba8 {[%clk 0:01:31]} 24. Bd4 {[%clk 0:01:18]}  Bh6 {[%clk 0:01:20]} 25. Be3 {[%clk 0:01:16]}  Bg7 {[%clk 0:01:08]} 26. a4 {[%clk 0:01:17]}  Rfc8 {[%clk 0:00:56]} 27. Nb5 {[%clk 0:01:14]}  Bb7 {[%clk 0:00:55]} 28. Qxa5 {[%clk 0:01:07]}  Ra8 {[%clk 0:00:51]} 29. Qb4 {[%clk 0:01:04]}  Ba6 {[%clk 0:00:41]} 30. Nd4 {[%clk 0:00:54]}  Bd3 {[%clk 0:00:33]} 31. Ra1 {[%clk 0:00:42]}  Rxc1+ {[%clk 0:00:20]} 32. Bxc1 {[%clk 0:00:40]}  e5 {[%clk 0:00:18]} 33. Nc6 {[%clk 0:00:35]}  f5 {[%clk 0:00:15]} 34. exf5 {[%clk 0:00:28]}  Qxf5 {[%clk 0:00:12]} 35. Ra3 {[%clk 0:00:19]}  e4 {[%clk 0:00:12]} 36. fxe4 {[%clk 0:00:19]}  Bxe4 {[%clk 0:00:13]} 37. Ne7 {[%clk 0:00:13]}  Qg4 {[%clk 0:00:10]} 38. Bg5 {[%clk 0:00:12]}  Qxg2# {[%clk 0:00:09]} 0-1


[Site "https://www.chess.com"]